bitfinex-derivatives/quotes_SOLF0:USTF0_20241215
["timestamp","ask_amount","ask_price","bid_price","bid_amount"]
[1734277049546,2.2653,220.79,220.75,2.2657]
[1734277049745,2.2653,220.79,220.72,5.43061331]
[1734277050443,2.2653,220.79,220.74,2.2658]
[1734277050644,2.2655,220.78,220.72,5.43061331]
[1734277050840,2.02,220.77,220.72,5.43061331]
[1734277051043,2.02,220.77,220.72,7.69661331]
[1734277051245,4.2856,220.77,220.72,2.266]
[1734277051442,2.02,220.77,220.65,2.9506]
[1734277051947,2.2658,220.75,220.7,5.53640809]
[1734277053546,2.2658,220.75,220.7,7.80260809]
[1734277055842,2.2658,220.75,220.7,2.2662]
[1734277056248,2.2659,220.74,220.7,2.2662]
[1734277056450,2.02,220.73,220.7,2.2662]
[1734277057952,2.02,220.73,220.69,2.2664]
[1734277059254,2.02,220.73,220.65,2.9506]
[1734277059255,2.02,220.73,220.7,2.2662]
[1734277061752,2.02,220.73,220.68,7.63349624]
[1734277062856,2.2661,220.72,220.65,1.5044]
[1734277063053,2.02,220.73,220.66,2.2666]
[1734277063856,2.02,220.73,220.63,6.29966875]
[1734277064053,2.2662,220.71,220.66,2.2667]
[1734277064254,2.2662,220.71,220.63,6.29966875]
[1734277064451,2.2662,220.71,220.62,25.198675]
[1734277064653,2.2662,220.71,220.67,2.2665]
[1734277064853,2.02,220.73,220.67,2.2665]
[1734277065054,2.2661,220.72,220.67,2.2665]
[1734277065456,2.02,220.73,220.65,2.2667]
[1734277066459,2.2664,220.7,220.65,2.2667]
[1734277066759,2.02,220.69,220.65,2.2667]
[1734277068160,2.02,220.68,220.64,5.52044784]
[1734277068356,2.02,220.67,220.64,5.52044784]
[1734277068653,2.02,220.68,220.64,5.52044784]
[1734277068959,2.2659,220.74,220.68,2.2664]
[1734277069257,2.02,220.73,220.68,2.2664]
[1734277072463,2.02,220.73,220.64,5.52044784]
[1734277073462,2.2663,220.7,220.65,2.2667]
[1734277073663,2.02,220.69,220.65,2.2667]
[1734277075364,2.02,220.69,220.66,2.2667]
[1734277075761,2.02,220.69,220.64,5.52044784]
[1734277076570,2.02,220.69,220.68,2.2665]
[1734277077063,3.0041,220.79,220.64,5.52044784]
[1734277077261,2.2655,220.77,220.65,1.4474]
[1734277077762,2.02,220.76,220.65,1.4474]
[1734277078555,4.2857,220.76,220.71,2.2661]
[1734277079159,2.02,220.75,220.71,2.2661]
[1734277080559,2.02,220.74,220.65,1.4474]
[1734277080767,2.02,220.75,220.65,1.4474]
[1734277080961,7.64986513,220.85,220.66,2.02]
[1734277081162,2.02,220.84,220.66,2.02]
[1734277081461,2.2651,220.81,220.76,2.2656]
[1734277081660,2.02,220.8,220.76,2.2656]
[1734277083867,2.02,220.79,220.77,2.2655]
[1734277086261,2.02,220.79,220.67,3.5595]
[1734277086564,2.2648,220.84,220.67,3.5595]
[1734277086765,2.02,220.83,220.67,3.5595]
[1734277087072,2.265,220.82,220.67,3.5595]
[1734277087663,2.02,220.83,220.67,1.5395]
[1734277088270,1.4017,220.85,220.67,1.5395]
[1734277088568,2.02,220.84,220.67,1.5395]
[1734277089067,2.2651,220.82,220.77,2.2655]
[1734277089670,2.02,220.83,220.67,1.5395]
[1734277090370,2.2652,220.81,220.75,2.2657]
[1734277090570,2.02,220.83,220.67,1.5395]
[1734277092167,2.2656,220.76,220.7,2.2663]
[1734277092367,2.02,220.75,220.67,1.5395]
[1734277092572,2.02,220.74,220.67,1.5395]
[1734277092765,2.02,220.73,220.67,1.5395]
[1734277092972,2.02,220.72,220.67,1.5395]
[1734277093178,2.02,220.71,220.67,1.5395]
[1734277093472,2.02,220.71,220.7,2.2663]
[1734277094573,2.02,220.71,220.68,2.2664]
[1734277094776,2.02,220.71,220.65,1.4474]
[1734277096479,2.02,220.71,220.64,5.52044784]
[1734277096675,2.02,220.71,220.66,2.2666]
[1734277097279,2.2663,220.7,220.64,5.52044784]
[1734277097476,2.02,220.71,220.64,5.52044784]
[1734277098575,4.2862,220.71,220.66,2.2667]
[1734277100680,2.2663,220.7,220.64,2.2668]
[1734277101771,2.02,220.71,220.6,51.94697962]
[1734277101972,2.2665,220.68,220.59,1.4922]
[1734277102172,2.02,220.67,220.59,1.4922]
[1734277102376,2.02,220.66,220.65,2.2668]
[1734277105781,2.2659,220.74,220.69,2.2663]
[1734277105985,2.02,220.73,220.69,2.2663]
[1734277107580,4.286,220.73,220.69,2.2663]
[1734277107977,2.02,220.72,220.61,7.50448717]
[1734277108176,3.7877,220.77,220.62,1.472]
[1734277108177,2.02,220.73,220.62,1.472]
[1734277109580,2.02,220.73,220.72,2.2661]
[1734277110486,5.2131,220.8,220.75,2.2657]
[1734277110786,2.02,220.79,220.65,2.02]
[1734277111189,2.02,220.79,220.69,2.2663]
[1734277111489,2.02,220.79,220.65,2.02]
[1734277111688,2.02,220.79,220.78,2.2654]
[1734277120090,2.04,220.79,220.78,2.2654]
[1734277137312,1.4735,220.84,220.81,2.2651]
[1734277137517,2.04,220.83,220.81,2.2651]
[1734277138408,2.04,220.82,220.81,2.2651]
[1734277139608,1.4735,220.84,220.81,2.2651]
[1734277139811,2.04,220.83,220.81,2.2651]
[1734277140103,2.04,220.82,220.81,2.2651]
[1734277140705,2.04,220.82,220.75,5.35716783]
[1734277141004,2.04,220.82,220.79,2.2653]
[1734277142811,4.305,220.82,220.77,2.2654]
[1734277143112,2.04,220.82,220.77,2.2654]
[1734277144409,2.2651,220.81,220.77,2.2654]
[1734277145412,4.305,220.82,220.77,2.2654]
[1734277146013,2.04,220.82,220.75,5.35716783]
[1734277148514,2.04,220.82,220.79,2.2653]
[1734277150108,54.29841123,220.88,220.75,5.35716783]
[1734277150309,2.02,220.87,220.75,5.35716783]
[1734277150509,2.02,220.86,220.75,6.90096783]
[1734277150714,2.02,220.85,220.84,2.2648]
[1734277151912,7.78622779,220.92,220.84,2.2648]
[1734277152117,2.02,220.91,220.75,6.90096783]
[1734277153912,2.02,220.9,220.75,6.90096783]
[1734277154217,2.2643,220.89,220.79,2.2653]
[1734277154517,2.2643,220.89,220.75,6.90096783]
[1734277155316,2.2643,220.89,220.84,2.2648]
[1734277156117,2.2643,220.89,220.85,2.2647]
[1734277157017,2.02,220.88,220.85,2.2647]
[1734277157318,2.02,220.88,220.83,2.2648]
[1734277158018,2.2645,220.87,220.83,2.2648]
[1734277158219,2.2645,220.87,220.75,6.90096783]
[1734277159117,2.2645,220.87,220.75,7.06144783]
[1734277159317,2.2645,220.87,220.82,2.2649]
[1734277161320,2.2645,220.87,220.83,2.2649]
[1734277161821,4.2844,220.88,220.83,2.2649]
[1734277162011,4.2844,220.88,220.84,2.2648]
[1734277162919,2.2645,220.87,220.75,7.06144783]
[1734277163325,2.2645,220.87,220.78,2.2654]
[1734277163517,2.2645,220.87,220.75,7.06144783]
[1734277164024,2.2645,220.87,220.82,2.265]
[1734277167820,2.02,220.88,220.75,7.06144783]
[1734277168432,2.265,220.83,220.78,2.2654]
[1734277168628,2.02,220.82,220.78,2.2654]
[1734277168828,2.02,220.82,220.75,5.51764783]
[1734277169127,2.02,220.82,220.79,2.2653]
[1734277169434,2.02,220.82,220.75,5.51764783]
[1734277169731,2.02,220.82,220.8,2.2652]
[1734277171231,2.02,220.82,220.75,5.51764783]
[1734277171430,2.02,220.82,220.75,0.16048]
[1734277171735,2.2654,220.78,220.75,0.16048]
[1734277171927,2.02,220.77,220.75,0.16048]
[1734277172128,1.4793,220.81,220.75,0.16048]
[1734277172129,2.02,220.76,220.75,0.16048]
[1734277174530,1.4793,220.81,220.75,0.16048]
[1734277174733,2.8503,220.87,220.75,0.16048]
[1734277174734,2.02,220.8,220.75,0.16048]
[1734277174932,2.02,220.79,220.75,0.16048]
[1734277175131,2.02,220.78,220.75,0.16048]
[1734277176431,2.02,220.78,220.77,2.2655]
[1734277179431,2.2648,220.85,220.8,2.2652]
[1734277179634,2.02,220.84,220.75,0.16048]
[1734277180532,2.02,220.84,220.8,2.2652]
[1734277181133,2.02,220.84,220.81,2.2651]
[1734277182529,2.02,220.83,220.81,2.2651]
[1734277183436,2.02,220.83,220.8,2.2652]
[1734277187642,2.02,220.83,220.77,2.2655]
[1734277187841,2.02,220.83,220.74,1.5247]
[1734277189542,4.285,220.83,220.79,2.2653]
[1734277194343,2.02,220.83,220.77,2.2655]
[1734277194843,2.02,220.83,220.73,5.56357158]
[1734277195044,2.02,220.83,220.79,2.2653]
[1734277199245,2.02,220.82,220.73,5.56357158]
[1734277199449,2.02,220.81,220.8,2.2652]
[1734277199647,2.02,220.81,220.73,5.56357158]
[1734277200047,2.02,220.81,220.8,2.2652]
[1734277200851,2.2647,220.86,220.81,2.2651]
[1734277201152,2.02,220.85,220.81,2.2651]
[1734277202148,2.02,220.85,220.82,2.265]
[1734277203254,2.02,220.85,220.73,5.56357158]
[1734277203454,2.02,220.85,220.83,2.2649]
[1734277205052,2.02,220.89,220.75,2.02]
[1734277205249,2.02,220.89,220.76,1.5483]
[1734277205653,2.02,220.89,220.77,1.4895]
[1734277207462,2.2647,220.86,220.81,2.2651]
[1734277207760,2.02,220.85,220.81,2.2651]
[1734277208857,4.2847,220.85,220.81,2.2651]
[1734277209059,2.02,220.85,220.81,2.2651]
[1734277211662,2.02,220.84,220.81,2.2651]
[1734277216273,2.02,220.84,220.79,2.2652]
[1734277217268,2.02,220.84,220.8,2.2652]
[1734277224479,4.2849,220.84,220.8,2.2652]
[1734277227379,6.24401623,220.88,220.73,5.56357158]
[1734277227579,4.5372,220.92,220.73,5.56357158]
[1734277227580,2.02,220.87,220.73,5.56357158]
[1734277227776,6.24401623,220.91,220.73,5.56357158]
[1734277227777,2.02,220.86,220.73,5.56357158]
[1734277227978,2.02,220.85,220.73,5.56357158]
[1734277228178,2.02,220.84,220.73,5.56357158]
[1734277228378,2.2644,220.88,220.84,2.2648]
[1734277228573,4.5372,220.92,220.84,2.2648]
[1734277228777,2.02,220.91,220.74,2.02]
[1734277229080,2.02,220.91,220.85,2.2647]
[1734277229580,2.2643,220.89,220.85,2.2647]
[1734277230281,2.02,220.88,220.85,2.2647]
[1734277230884,2.02,220.88,220.87,2.2645]
[1734277232787,2.02,220.88,220.85,2.2646]
[1734277235084,2.2642,220.9,220.85,2.2646]
[1734277235283,2.02,220.87,220.85,2.2646]
[1734277235685,2.02,220.87,220.86,2.2646]
[1734277237786,2.2642,220.9,220.86,2.2646]
[1734277237987,2.02,220.89,220.86,2.2646]
[1734277239591,2.02,220.89,220.88,2.2644]
[1734277240195,1.5175,220.92,220.88,2.2644]
[1734277240396,2.02,220.91,220.88,2.2644]
[1734277242492,2.9349,220.97,220.89,2.2643]
[1734277242699,2.2638,220.95,220.89,2.2643]
[1734277243393,2.2638,220.94,220.89,2.2643]
[1734277244294,2.02,220.96,220.89,2.2643]
[1734277244493,2.02,220.96,220.79,2.9488]
[1734277244891,2.2641,220.92,220.79,2.9488]
[1734277245095,2.02,220.91,220.86,2.2645]
[1734277246098,2.02,220.91,220.88,2.2644]
[1734277248101,2.02,220.91,220.85,5.44916461]
[1734277248296,2.02,220.91,220.89,2.2643]
[1734277249400,2.2639,220.94,220.89,2.2643]
[1734277249604,4.2839,220.93,220.89,2.2643]
[1734277249903,2.02,220.92,220.89,2.2643]
[1734277251202,2.02,220.92,220.85,5.44916461]
[1734277251401,2.02,220.92,220.79,2.9488]
[1734277252100,2.2644,220.88,220.84,2.2648]
[1734277252398,2.02,220.87,220.84,2.2648]
[1734277252603,2.02,220.86,220.84,2.2648]
[1734277252804,2.02,220.85,220.84,2.2648]
[1734277255102,2.02,220.85,220.79,2.9488]
[1734277256400,2.02,220.85,220.83,2.2649]
[1734277270113,2.02,220.85,220.84,2.2648]
[1734277270313,28.22913624,220.97,220.79,2.9488]
[1734277270617,2.02,220.96,220.79,2.9488]
[1734277271118,2.2639,220.93,220.79,2.9488]
[1734277271313,2.02,220.92,220.79,2.9488]
[1734277272413,2.02,220.92,220.89,2.2643]
[1734277273113,2.02,220.91,220.89,2.2643]
[1734277274814,2.02,220.91,220.87,2.2644]
[1734277275207,2.02,220.91,220.79,2.9488]
[1734277275416,2.02,220.91,220.84,2.2648]
[1734277276419,2.2645,220.88,220.83,2.2649]
[1734277276618,2.02,220.87,220.79,2.9488]
[1734277277420,2.02,220.87,220.83,2.2648]
[1734277280317,2.02,220.86,220.84,2.2648]
[1734277283326,2.02,220.86,220.83,2.2649]
[1734277291932,2.02,220.86,220.74,35.90502983]
[1734277292134,2.02,220.86,220.75,4.79635293]
[1734277292330,2.02,220.86,220.74,42.20469858]
[1734277293334,2.02,220.86,220.74,35.90502983]
[1734277293531,2.02,220.86,220.85,2.2647]
[1734277294634,2.02,220.86,220.84,2.2648]
[1734277299936,2.02,220.86,220.74,42.20469858]
[1734277300134,2.02,220.86,220.82,2.265]
[1734277300639,2.02,220.86,220.81,2.2651]
[1734277300640,4.2847,220.86,220.81,2.2651]
[1734277300937,2.02,220.86,220.81,2.2651]
[1734277301529,2.02,220.86,220.74,35.90502983]
[1734277301930,2.02,220.86,220.74,33.88502983]
[1734277302135,2.02,220.86,220.75,2.02]
[1734277302530,2.02,220.86,220.85,2.2647]
[1734277303137,2.02,220.86,220.83,2.2648]
[1734277303937,2.02,220.86,220.81,2.265]
[1734277305341,4.2847,220.86,220.81,2.265]
[1734277305840,4.2847,220.86,220.74,35.72952983]
[1734277305841,4.2847,220.86,220.82,2.265]
[1734277310435,4.2847,220.86,220.83,2.2648]
[1734277310436,2.02,220.86,220.83,2.2648]
[1734277319348,2.02,220.86,220.82,2.2649]
[1734277320143,2.02,220.86,220.74,33.70952983]
[1734277320144,2.2648,220.84,220.79,2.2652]
[1734277320341,2.02,220.86,220.74,33.70952983]
[1734277321345,2.02,220.86,220.78,2.2654]
[1734277322646,2.265,220.83,220.78,2.2654]
[1734277322850,2.02,220.82,220.78,2.2654]
[1734277323049,4.285,220.82,220.78,2.2654]
[1734277324345,2.02,220.82,220.74,33.70952983]
[1734277324548,2.2651,220.81,220.74,33.70952983]
[1734277325142,2.2651,220.81,220.75,5.52858357]
[1734277325445,2.2651,220.81,220.76,2.2656]
[1734277328050,2.2653,220.8,220.76,2.2656]
[1734277333862,2.02,220.82,220.66,5.0237]
[1734277334060,2.2655,220.78,220.73,2.2659]
[1734277334262,2.02,220.77,220.73,2.2659]
[1734277335059,2.2657,220.76,220.71,2.2661]
[1734277335265,2.02,220.77,220.66,3.0037]
[1734277335859,2.2658,220.75,220.7,2.2663]
[1734277336062,2.2658,220.75,220.7,7.61138957]
[1734277336263,2.02,220.77,220.7,2.2663]
[1734277336566,2.02,220.77,220.66,3.0037]
[1734277336766,2.02,220.77,220.66,1.5196]
[1734277336964,2.266,220.73,220.64,2.2668]
[1734277337160,2.02,220.72,220.6,1.4783]
[1734277337361,2.02,220.71,220.6,1.4783]
[1734277337558,2.02,220.7,220.6,1.4783]
[1734277338467,2.02,220.7,220.66,2.2666]
[1734277338666,2.02,220.7,220.67,0.25451]
[1734277342259,4.2863,220.7,220.67,0.25451]
[1734277343366,2.02,220.7,220.67,0.25451]
[1734277348271,4.2863,220.7,220.67,0.25451]
[1734277350377,2.2664,220.69,220.67,0.25451]
[1734277356279,2.02,220.7,220.67,0.25451]
[1734277356976,4.2863,220.7,220.67,0.25451]
[1734277358477,2.2664,220.69,220.67,0.25451]
[1734277360378,4.2863,220.7,220.66,2.2667]
[1734277362374,4.2863,220.7,220.63,5.52099973]
[1734277362375,4.2863,220.7,220.65,2.2668]
[1734277364981,2.2663,220.7,220.65,2.2668]
[1734277365181,2.02,220.69,220.65,2.2668]
[1734277368081,2.02,220.69,220.63,5.52099973]
[1734277368281,2.02,220.69,220.66,2.2667]
[1734277368688,2.02,220.69,220.63,5.52099973]
[1734277368878,2.02,220.69,220.6,1.4783]
[1734277369087,4.3002,220.76,220.6,7.77796875]
[1734277369387,3.6852,220.76,220.72,2.2661]
[1734277369586,2.02,220.75,220.72,2.2661]
[1734277369787,2.02,220.75,220.61,27.218675]
[1734277370086,2.02,220.75,220.61,2.02]
[1734277370281,2.02,220.75,220.6,26.676975]
[1734277370488,2.02,220.75,220.64,5.49675711]
[1734277371487,2.2661,220.72,220.68,2.2665]
[1734277371687,2.02,220.71,220.68,2.2665]
[1734277372085,2.02,220.71,220.69,2.2663]
[1734277374389,2.266,220.73,220.69,2.2663]
[1734277374590,2.02,220.72,220.69,2.2663]
[1734277378498,4.2861,220.72,220.67,2.2665]
[1734277379792,2.02,220.72,220.6,1.4783]
[1734277379996,2.02,220.72,220.65,2.2667]
[1734277379997,2.2663,220.7,220.65,2.2667]
[1734277381300,2.2663,220.7,220.66,2.2667]
[1734277382095,2.02,220.72,220.68,2.2665]
[1734277384000,4.2861,220.72,220.68,2.2665]
[1734277386898,4.2861,220.72,220.67,2.2666]
[1734277388903,2.02,220.72,220.68,2.2664]
[1734277389299,2.0,220.71,220.68,2.2664]
[1734277390198,2.2661,220.72,220.68,2.2664]
[1734277390400,2.0,220.71,220.68,2.2664]
[1734277394309,2.0,220.71,220.67,2.2666]
[1734277401302,2.0,220.71,220.63,5.33432864]
[1734277401303,3.6852,220.76,220.63,5.33432864]
[1734277401614,2.0,220.75,220.63,5.33432864]
[1734277401908,2.0,220.74,220.71,2.2661]
[1734277402707,2.0,220.74,220.72,2.266]
[1734277404004,2.0,220.74,220.73,2.266]
[1734277404407,2.0,220.75,220.73,2.266]
[1734277405711,2.0,220.75,220.67,1.5109]
[1734277406009,2.0,220.75,220.74,2.2659]
[1734277419022,58.90903111,220.84,220.79,2.2653]
[1734277419220,2.0,220.83,220.72,5.55029143]
[1734277419717,2.265,220.82,220.78,2.2654]
[1734277425125,4.2649,220.83,220.78,2.2654]
[1734277425629,2.2649,220.83,220.78,2.2654]
[1734277425827,2.0,220.82,220.79,2.2653]
[1734277426831,2.2649,220.83,220.79,2.2653]
[1734277427033,2.0,220.82,220.79,2.2653]
[1734277441340,4.265,220.82,220.77,2.2654]
[1734277443643,2.0,220.82,220.77,2.2654]
[1734277443941,2.0,220.82,220.72,5.55029143]
[1734277443942,2.2652,220.81,220.75,2.2657]
[1734277444144,2.0,220.82,220.75,2.2657]
[1734277445141,4.2651,220.82,220.76,2.2655]
[1734277445338,2.0,220.82,220.76,2.2655]
[1734277446535,2.2652,220.81,220.76,2.2655]
[1734277457651,2.0,220.82,220.75,2.2657]
[1734277458352,2.2652,220.8,220.75,2.2657]
[1734277460346,2.2653,220.79,220.75,2.2657]
[1734277460555,2.0,220.78,220.75,2.2657]
[1734277466851,2.0,220.78,220.76,2.2656]
[1734277467954,2.2652,220.8,220.76,2.2656]
[1734277468153,2.0,220.77,220.76,2.2656]
[1734277472262,2.2651,220.82,220.78,2.2654]
[1734277472462,59.68483111,220.84,220.72,5.32102001]
[1734277472760,55.86983111,220.84,220.72,5.32102001]
[1734277472960,2.0,220.83,220.82,2.265]
[1734277473962,2.0,220.83,220.74,1.4167]
[1734277475264,2.0,220.83,220.8,2.2651]
[1734277475757,2.0,220.83,220.74,1.4167]
[1734277475963,4.265,220.83,220.78,2.2653]
[1734277478172,4.265,220.83,220.74,1.4167]
[1734277478474,4.265,220.83,220.79,2.2653]
[1734277480067,2.0,220.83,220.74,1.4167]
[1734277480271,2.2651,220.81,220.77,2.2655]
[1734277488178,2.0,220.8,220.72,5.32102001]
[1734277488381,2.0,220.79,220.75,2.2656]
[1734277489079,4.2654,220.79,220.75,2.2656]
[1734277489281,2.0,220.79,220.69,2.2664]
[1734277489480,2.0,220.79,220.68,1.5265]
[1734277489481,2.0,220.79,220.67,1.72866]
[1734277489676,1.5483,220.78,220.67,1.72866]
[1734277489886,1.5483,220.78,220.7,2.2663]
[1734277491478,2.2658,220.75,220.7,2.2663]
[1734277491780,2.0,220.74,220.7,2.2663]
[1734277494986,4.2659,220.74,220.68,2.2664]
[1734277495889,2.2661,220.72,220.68,2.2664]
[1734277496689,2.2663,220.7,220.67,0.24956]
[1734277496884,2.0,220.69,220.67,0.24956]
[1734277502900,4.2664,220.69,220.67,0.24956]
[1734277503100,4.2664,220.69,220.65,2.2668]
[1734277503690,2.0,220.68,220.65,2.2668]
[1734277504195,2.0,220.68,220.63,5.55389634]
[1734277504196,2.0,220.68,220.5,0.2413]
[1734277504507,2.0,220.68,220.51,2.9524]
[1734277504799,2.2672,220.61,220.56,2.2677]
[1734277504995,2.0,220.6,220.56,2.2677]
[1734277506297,2.0,220.6,220.51,2.9524]
[1734277506298,2.2674,220.59,220.54,2.2678]
[1734277507298,2.2674,220.59,220.58,0.35487]
[1734277507897,2.0,220.6,220.58,0.35487]
[1734277508797,2.2674,220.59,220.58,0.35487]
[1734277509194,2.0,220.6,220.43,2.9535]
[1734277509400,2.2676,220.57,220.51,2.2681]
[1734277509597,2.0,220.56,220.51,2.2681]
[1734277510301,2.0,220.56,220.52,2.2681]
[1734277512001,1.413,220.66,220.52,2.2681]
[1734277512205,1.413,220.66,220.5,5.48450103]
[1734277512399,2.0,220.65,220.5,5.48450103]
[1734277513009,2.0,220.64,220.5,5.48450103]
[1734277513207,2.0,220.64,220.51,3.0079]
[1734277513605,2.2671,220.63,220.57,2.2675]
[1734277515908,2.0,220.62,220.57,2.2675]
[1734277516104,4.2671,220.62,220.57,2.2675]
[1734277516409,2.0,220.62,220.51,3.0079]
[1734277517406,2.2673,220.6,220.55,2.2678]
[1734277517708,2.2673,220.6,220.51,3.0079]
[1734277518098,2.2673,220.6,220.54,2.2678]
[1734277518502,2.0,220.62,220.54,2.2678]
[1734277518701,2.2674,220.59,220.54,2.2678]
[1734277518904,2.0,220.58,220.54,2.2678]
[1734277520109,6.8074604,220.66,220.5,5.48450103]
[1734277520313,2.0,220.65,220.5,5.48450103]
[1734277521508,2.2672,220.61,220.56,2.2677]
[1734277521708,2.0,220.6,220.56,2.2677]
[1734277522816,2.0,220.6,220.58,2.2675]
[1734277524112,2.2671,220.63,220.58,2.2675]
[1734277524113,2.0,220.59,220.58,2.2675]
[1734277527109,4.2674,220.59,220.54,2.2679]
[1734277527717,4.2674,220.59,220.55,2.2678]
[1734277534128,2.2675,220.58,220.54,2.2679]
[1734277534523,2.2675,220.58,220.5,5.48450103]
[1734277535522,2.2675,220.58,220.52,2.268]
[1734277536123,2.0,220.59,220.5,5.48450103]
[1734277537117,2.0,220.59,220.55,2.2677]
[1734277539318,2.2674,220.59,220.55,2.2677]
[1734277539518,2.0,220.58,220.55,2.2677]
[1734277540327,2.0,220.58,220.56,2.2676]
[1734277542224,2.0,220.58,220.52,2.2681]
[1734277542525,2.0,220.58,220.5,5.48450103]
[1734277543024,4.2675,220.58,220.5,5.48450103]
[1734277543221,2.0,220.58,220.5,5.48450103]
[1734277543927,2.2676,220.57,220.52,2.268]
[1734277548428,2.0,220.58,220.52,2.268]
[1734277548429,2.2677,220.56,220.52,2.268]
[1734277549228,2.2676,220.57,220.52,2.268]
[1734277550231,2.2677,220.56,220.52,2.268]
[1734277550623,6.8074604,220.66,220.5,5.48450103]
[1734277550827,2.2672,220.61,220.5,5.48450103]
[1734277551023,2.0,220.6,220.5,5.48450103]
[1734277551234,2.0,220.59,220.5,5.48450103]
[1734277551525,2.0,220.58,220.54,2.2678]
[1734277551724,2.0,220.57,220.54,2.2678]
[1734277553527,2.0,220.57,220.5,5.48450103]
[1734277553725,2.0,220.57,220.52,2.268]
[1734277554425,23.72638479,220.65,220.46,1.471]
[1734277554630,2.0,220.64,220.46,1.471]
[1734277555432,2.2673,220.6,220.55,2.2678]
[1734277555632,2.0,220.59,220.55,2.2678]
[1734277556633,2.0,220.58,220.57,2.2676]
[1734277559733,1.413,220.66,220.49,5.43474889]
[1734277560030,2.0,220.65,220.61,2.2671]
[1734277561039,2.0,220.65,220.59,2.2673]
[1734277561338,2.0,220.65,220.5,0.6001]
[1734277562436,2.2672,220.61,220.5,0.6001]
[1734277562633,2.0,220.6,220.49,5.43474889]
[1734277563439,2.0,220.6,220.56,2.2677]
[1734277566336,2.2674,220.59,220.54,2.2678]
[1734277566543,2.0,220.6,220.49,5.43474889]
[1734277566937,4.2673,220.6,220.55,2.2678]
[1734277568042,2.2674,220.59,220.55,2.2678]
[1734277571449,2.0,220.6,220.58,2.2675]
[1734277571849,2.0,220.6,220.49,5.43474889]
[1734277573650,2.2674,220.59,220.54,2.2678]
[1734277574542,2.0,220.6,220.49,5.43474889]
[1734277574847,7.63843444,220.66,220.49,5.43474889]
[1734277575055,2.0,220.65,220.49,5.43474889]
[1734277575549,4.2668,220.65,220.61,2.2672]
[1734277575749,2.0,220.64,220.49,5.43474889]
[1734277575948,2.0,220.64,220.63,2.267]
[1734277576249,2.0,220.64,220.5,4.7973443]
[1734277576250,2.0,220.64,220.52,2.0]
[1734277576448,2.0,220.64,220.53,0.6013]
[1734277576648,2.0,220.64,220.53,2.0364]
[1734277576853,1.62251,220.72,220.54,1.5114]
[1734277577053,2.0,220.71,220.54,1.5114]
[1734277577249,1.62251,220.72,220.54,1.5114]
[1734277577458,2.0,220.71,220.54,1.5114]
[1734277577952,0.15911,220.72,220.54,1.5114]
[1734277578359,2.0,220.71,220.54,1.5114]
[1734277578652,2.0,220.71,220.54,12.59647188]
[1734277578960,2.0,220.71,220.54,7.81106875]
[1734277579160,2.0,220.71,220.54,1.5114]
[1734277579752,2.0,220.71,220.55,11.08146907]
[1734277579956,2.0,220.71,220.56,2.0]
[1734277580457,2.0,220.71,220.69,2.2663]